[Event "Titled Tuesday Blitz April 25 Early 2023"]
[White "Van Foreest, Jorden"]
[Black "Shuvalova, Polina"]
[WhiteFideId "1039784"]
[BlackFideId "24171760"]
[WhiteElo "2633"]
[BlackElo "2281"]
[Result "0-1"]
[Round "03"]
[TimeControl "180+2"]
[Date "2023.04.25"]
[WhiteClock "0:00:01"]
[BlackClock "0:00:06"]

1. e4 {[%clk 0:03:00]}  c6 {[%clk 0:02:53]} 2. d4 {[%clk 0:02:57]}  d5 {[%clk 0:02:51]} 3. e5 {[%clk 0:02:58]}  Bf5 {[%clk 0:02:51]} 4. Ne2 {[%clk 0:02:58]}  e6 {[%clk 0:02:48]} 5. Ng3 {[%clk 0:02:57]}  Bg6 {[%clk 0:02:49]} 6. h4 {[%clk 0:02:58]}  h6 {[%clk 0:02:50]} 7. h5 {[%clk 0:02:57]}  Bh7 {[%clk 0:02:50]} 8. Bd3 {[%clk 0:02:58]}  Bxd3 {[%clk 0:02:51]} 9. cxd3 {[%clk 0:02:59]}  c5 {[%clk 0:02:43]} 10. dxc5 {[%clk 0:02:59]}  Bxc5 {[%clk 0:02:43]} 11. d4 {[%clk 0:03:00]}  Bb4+ {[%clk 0:02:42]} 12. Kf1 {[%clk 0:03:00]}  Ne7 {[%clk 0:02:33]} 13. a3 {[%clk 0:02:59]}  Ba5 {[%clk 0:02:31]} 14. b4 {[%clk 0:02:51]}  Bb6 {[%clk 0:02:29]} 15. Nc3 {[%clk 0:02:52]}  Nd7 {[%clk 0:02:26]} 16. Qg4 {[%clk 0:02:45]}  Kf8 {[%clk 0:02:20]} 17. Nb5 {[%clk 0:02:32]}  Nc8 {[%clk 0:02:01]} 18. Be3 {[%clk 0:02:13]}  a6 {[%clk 0:02:01]} 19. Nc3 {[%clk 0:02:14]}  Ne7 {[%clk 0:02:02]} 20. Na4 {[%clk 0:02:14]}  Rc8 {[%clk 0:02:00]} 21. Nc5 {[%clk 0:02:06]}  Bxc5 {[%clk 0:02:00]} 22. bxc5 {[%clk 0:02:00]}  b6 {[%clk 0:01:59]} 23. cxb6 {[%clk 0:02:00]}  Nxb6 {[%clk 0:01:57]} 24. Kg1 {[%clk 0:02:00]}  Nc4 {[%clk 0:01:55]} 25. Kh2 {[%clk 0:02:00]}  Nc6 {[%clk 0:01:52]} 26. Rhb1 {[%clk 0:01:59]}  Rb8 {[%clk 0:01:47]} 27. Ne2 {[%clk 0:01:54]}  Qc7 {[%clk 0:01:25]} 28. Nf4 {[%clk 0:01:49]}  Qc8 {[%clk 0:01:00]} 29. Rxb8 {[%clk 0:01:14]}  Qxb8 {[%clk 0:00:52]} 30. a4 {[%clk 0:01:01]}  Rg8 {[%clk 0:00:51]} 31. Qd1 {[%clk 0:00:55]}  Ke7 {[%clk 0:00:50]} 32. Rb1 {[%clk 0:00:55]}  Qc7 {[%clk 0:00:49]} 33. Qg4 {[%clk 0:00:53]}  a5 {[%clk 0:00:37]} 34. Kh3 {[%clk 0:00:51]}  Nb4 {[%clk 0:00:35]} 35. Rc1 {[%clk 0:00:47]}  Qd7 {[%clk 0:00:34]} 36. Qh4+ {[%clk 0:00:45]}  Ke8 {[%clk 0:00:31]} 37. Ra1 {[%clk 0:00:44]}  Qe7 {[%clk 0:00:28]} 38. Qg4 {[%clk 0:00:42]}  Qg5 {[%clk 0:00:23]} 39. Qxg5 {[%clk 0:00:36]}  hxg5 {[%clk 0:00:24]} 40. Ne2 {[%clk 0:00:37]}  Nxe3 {[%clk 0:00:20]} 41. fxe3 {[%clk 0:00:36]}  f5 {[%clk 0:00:19]} 42. exf6 {[%clk 0:00:32]}  gxf6 {[%clk 0:00:19]} 43. Rc1 {[%clk 0:00:31]}  Kd7 {[%clk 0:00:18]} 44. Rc5 {[%clk 0:00:32]}  f5 {[%clk 0:00:16]} 45. Rxa5 {[%clk 0:00:31]}  Nd3 {[%clk 0:00:16]} 46. Ra7+ {[%clk 0:00:31]}  Kd6 {[%clk 0:00:17]} 47. Nc3 {[%clk 0:00:30]}  Rh8 {[%clk 0:00:17]} 48. a5 {[%clk 0:00:16]}  Rxh5+ {[%clk 0:00:17]} 49. Kg3 {[%clk 0:00:16]}  f4+ {[%clk 0:00:14]} 50. Kf3 {[%clk 0:00:13]}  Rh1 {[%clk 0:00:13]} 51. exf4 {[%clk 0:00:12]}  gxf4 {[%clk 0:00:13]} 52. a6 {[%clk 0:00:13]}  Ra1 {[%clk 0:00:12]} 53. Ra8 {[%clk 0:00:09]}  Kc6 {[%clk 0:00:09]} 54. Re8 {[%clk 0:00:06]}  Kd7 {[%clk 0:00:08]} 55. Ra8 {[%clk 0:00:07]}  Kc6 {[%clk 0:00:08]} 56. a7 {[%clk 0:00:04]}  Kb7 {[%clk 0:00:09]} 57. Re8 {[%clk 0:00:05]}  Rxa7 {[%clk 0:00:08]} 58. Re7+ {[%clk 0:00:04]}  Kb8 {[%clk 0:00:07]} 59. Rxe6 {[%clk 0:00:05]}  Ra3 {[%clk 0:00:08]} 60. Nb5 {[%clk 0:00:02]}  Rb3 {[%clk 0:00:07]} 61. Re8+ {[%clk 0:00:02]}  Kb7 {[%clk 0:00:08]} 62. Re7+ {[%clk 0:00:01]}  Kb6 {[%clk 0:00:07]} 63. Nd6 {[%clk 0:00:02]}  Ne1+ {[%clk 0:00:04]} 64. Kxf4 {[%clk 0:00:01]}  Nxg2+ {[%clk 0:00:05]} 65. Kg4 {[%clk 0:00:01]}  Ne3+ {[%clk 0:00:05]} 66. Kf4 {[%clk 0:00:01]}  Nc4 {[%clk 0:00:06]} 0-1


[Site "https://www.chess.com"]

[Event "Titled Tuesday Blitz April 25 Early 2023"]
[White "Kramnik, Vladimir"]
[Black "Salimova, Nurgyul"]
[WhiteFideId "4101588"]
[BlackFideId "2915138"]
[WhiteElo "2712"]
[BlackElo "2314"]
[Result "1-0"]
[Round "03"]
[TimeControl "180+2"]
[Date "2023.04.25"]
[WhiteClock "0:00:13"]
[BlackClock "0:00:01"]

1. e4 {[%clk 0:03:00]}  c6 {[%clk 0:02:58]} 2. d4 {[%clk 0:02:59]}  d5 {[%clk 0:02:59]} 3. Nd2 {[%clk 0:02:59]}  dxe4 {[%clk 0:02:59]} 4. Nxe4 {[%clk 0:02:59]}  Nf6 {[%clk 0:02:59]} 5. Nxf6+ {[%clk 0:02:58]}  exf6 {[%clk 0:03:00]} 6. c3 {[%clk 0:02:58]}  Bd6 {[%clk 0:03:01]} 7. Bd3 {[%clk 0:02:58]}  O-O {[%clk 0:03:01]} 8. Ne2 {[%clk 0:02:58]}  Re8 {[%clk 0:02:59]} 9. O-O {[%clk 0:02:59]}  Nd7 {[%clk 0:02:58]} 10. Ng3 {[%clk 0:02:58]}  Nf8 {[%clk 0:02:51]} 11. a4 {[%clk 0:02:56]}  a5 {[%clk 0:02:48]} 12. f4 {[%clk 0:02:56]}  f5 {[%clk 0:02:06]} 13. Nxf5 {[%clk 0:02:49]}  Bxf5 {[%clk 0:02:05]} 14. Bxf5 {[%clk 0:02:47]}  c5 {[%clk 0:02:05]} 15. Kh1 {[%clk 0:02:31]}  Qf6 {[%clk 0:02:00]} 16. Qd3 {[%clk 0:02:12]}  cxd4 {[%clk 0:01:52]} 17. cxd4 {[%clk 0:02:11]}  Rad8 {[%clk 0:01:39]} 18. Be4 {[%clk 0:02:00]}  Bb4 {[%clk 0:01:13]} 19. d5 {[%clk 0:01:51]}  Nd7 {[%clk 0:00:41]} 20. Bxh7+ {[%clk 0:01:45]}  Kh8 {[%clk 0:00:41]} 21. Qh3 {[%clk 0:01:39]}  Qh6 {[%clk 0:00:25]} 22. Qxh6 {[%clk 0:01:38]}  gxh6 {[%clk 0:00:26]} 23. Bd3 {[%clk 0:01:36]}  Nb6 {[%clk 0:00:18]} 24. Bb5 {[%clk 0:01:32]}  Re4 {[%clk 0:00:17]} 25. f5 {[%clk 0:01:26]}  Kh7 {[%clk 0:00:08]} 26. Bf4 {[%clk 0:01:15]}  Rxd5 {[%clk 0:00:04]} 27. Bc7 {[%clk 0:01:14]}  Nc4 {[%clk 0:00:04]} 28. h3 {[%clk 0:00:59]}  Nxb2 {[%clk 0:00:03]} 29. Rac1 {[%clk 0:00:51]}  Nd3 {[%clk 0:00:02]} 30. Rc2 {[%clk 0:00:46]}  Ne5 {[%clk 0:00:03]} 31. f6 {[%clk 0:00:41]}  Ng6 {[%clk 0:00:03]} 32. Bg3 {[%clk 0:00:34]}  Bd6 {[%clk 0:00:03]} 33. Bxd6 {[%clk 0:00:32]}  Rxd6 {[%clk 0:00:04]} 34. Rc7 {[%clk 0:00:32]}  Ne5 {[%clk 0:00:05]} 35. Rxb7 {[%clk 0:00:29]}  Kg6 {[%clk 0:00:05]} 36. Ra7 {[%clk 0:00:28]}  Rxf6 {[%clk 0:00:05]} 37. Rxf6+ {[%clk 0:00:27]}  Kxf6 {[%clk 0:00:06]} 38. Rxa5 {[%clk 0:00:27]}  Re1+ {[%clk 0:00:07]} 39. Kh2 {[%clk 0:00:26]}  Kg5 {[%clk 0:00:08]} 40. Ra6 {[%clk 0:00:23]}  f5 {[%clk 0:00:08]} 41. Ra8 {[%clk 0:00:19]}  Kf4 {[%clk 0:00:08]} 42. Re8 {[%clk 0:00:17]}  Re3 {[%clk 0:00:03]} 43. a5 {[%clk 0:00:15]}  Rb3 {[%clk 0:00:02]} 44. a6 {[%clk 0:00:15]}  Rxb5 {[%clk 0:00:01]} 45. a7 {[%clk 0:00:15]}  Rb2 {[%clk 0:00:01]} 46. a8=Q {[%clk 0:00:13]} 1-0


[Site "https://www.chess.com"]

[Event "Titled Tuesday Blitz April 25 Early 2023"]
[White "Vetoshko, Volodymyr"]
[Black "Gupta, Abhijeet"]
[WhiteFideId "14122480"]
[BlackFideId "5010608"]
[WhiteElo "2422"]
[BlackElo "2528"]
[Result "0-1"]
[Round "03"]
[TimeControl "180+2"]
[Date "2023.04.25"]
[WhiteClock "0:00:02"]
[BlackClock "0:00:45"]

1. e4 {[%clk 0:02:59]}  c5 {[%clk 0:03:00]} 2. Nf3 {[%clk 0:02:57]}  d6 {[%clk 0:03:00]} 3. d4 {[%clk 0:02:55]}  cxd4 {[%clk 0:03:01]} 4. Nxd4 {[%clk 0:02:55]}  Nf6 {[%clk 0:03:02]} 5. Nc3 {[%clk 0:02:51]}  Nc6 {[%clk 0:03:02]} 6. Nb3 {[%clk 0:02:47]}  g6 {[%clk 0:02:52]} 7. Be2 {[%clk 0:02:43]}  Bg7 {[%clk 0:02:51]} 8. O-O {[%clk 0:02:39]}  O-O {[%clk 0:02:52]} 9. Re1 {[%clk 0:02:39]}  a6 {[%clk 0:02:52]} 10. h3 {[%clk 0:02:36]}  b5 {[%clk 0:02:51]} 11. Bf1 {[%clk 0:02:35]}  Bb7 {[%clk 0:02:49]} 12. g3 {[%clk 0:02:14]}  Rc8 {[%clk 0:02:47]} 13. Bg2 {[%clk 0:02:13]}  b4 {[%clk 0:02:36]} 14. Nd5 {[%clk 0:02:11]}  a5 {[%clk 0:02:35]} 15. Bg5 {[%clk 0:02:06]}  a4 {[%clk 0:02:21]} 16. Bxf6 {[%clk 0:01:57]}  exf6 {[%clk 0:02:20]} 17. Nd4 {[%clk 0:01:46]}  Nxd4 {[%clk 0:01:59]} 18. Qxd4 {[%clk 0:01:47]}  Bxd5 {[%clk 0:01:54]} 19. exd5 {[%clk 0:01:28]}  Qa5 {[%clk 0:01:54]} 20. Qd3 {[%clk 0:01:22]}  f5 {[%clk 0:01:52]} 21. Rab1 {[%clk 0:01:22]}  Qc5 {[%clk 0:01:49]} 22. Re2 {[%clk 0:01:19]}  Rfe8 {[%clk 0:01:40]} 23. Rxe8+ {[%clk 0:00:54]}  Rxe8 {[%clk 0:01:41]} 24. a3 {[%clk 0:00:50]}  bxa3 {[%clk 0:01:32]} 25. Qxa3 {[%clk 0:00:25]}  Qxc2 {[%clk 0:01:29]} 26. Ra1 {[%clk 0:00:14]}  Bd4 {[%clk 0:01:15]} 27. Rf1 {[%clk 0:00:03]}  Bxb2 {[%clk 0:01:10]} 28. Qxd6 {[%clk 0:00:03]}  a3 {[%clk 0:01:07]} 29. Qa6 {[%clk 0:00:03]}  Qd2 {[%clk 0:01:01]} 30. d6 {[%clk 0:00:02]}  Rd8 {[%clk 0:01:00]} 31. Qa4 {[%clk 0:00:01]}  Qxd6 {[%clk 0:00:57]} 32. Qb3 {[%clk 0:00:02]}  Qe6 {[%clk 0:00:55]} 33. Qa4 {[%clk 0:00:01]}  Kg7 {[%clk 0:00:54]} 34. h4 {[%clk 0:00:01]}  h5 {[%clk 0:00:54]} 35. Bf3 {[%clk 0:00:01]}  Rd4 {[%clk 0:00:53]} 36. Qc2 {[%clk 0:00:01]}  f4 {[%clk 0:00:52]} 37. Kg2 {[%clk 0:00:01]}  Qd6 {[%clk 0:00:46]} 38. Qb3 {[%clk 0:00:02]}  Rd2 {[%clk 0:00:45]} 0-1


[Site "https://www.chess.com"]

[Event "Titled Tuesday Blitz April 25 Early 2023"]
[White "Svane, Frederik"]
[Black "De Silva, L M S T"]
[WhiteFideId "12923044"]
[BlackFideId "9953698"]
[WhiteElo "2502"]
[BlackElo "2404"]
[Result "1/2-1/2"]
[Round "03"]
[TimeControl "180+2"]
[Date "2023.04.25"]
[WhiteClock "0:00:13"]
[BlackClock "0:00:06"]

1. g3 {[%clk 0:03:00]}  d5 {[%clk 0:03:00]} 2. Nf3 {[%clk 0:03:00]}  Nf6 {[%clk 0:02:58]} 3. Bg2 {[%clk 0:03:00]}  e6 {[%clk 0:02:59]} 4. O-O {[%clk 0:03:01]}  b5 {[%clk 0:03:00]} 5. d4 {[%clk 0:02:51]}  Be7 {[%clk 0:02:59]} 6. Qd3 {[%clk 0:02:51]}  O-O {[%clk 0:02:57]} 7. Bg5 {[%clk 0:02:40]}  Nbd7 {[%clk 0:02:40]} 8. Nbd2 {[%clk 0:02:13]}  c5 {[%clk 0:02:04]} 9. Qxb5 {[%clk 0:02:13]}  Rb8 {[%clk 0:02:03]} 10. Qa4 {[%clk 0:01:56]}  Rxb2 {[%clk 0:00:53]} 11. Rfb1 {[%clk 0:01:51]}  Qb6 {[%clk 0:00:45]} 12. c4 {[%clk 0:01:11]}  cxd4 {[%clk 0:00:36]} 13. Rxb2 {[%clk 0:01:11]}  Qxb2 {[%clk 0:00:36]} 14. Rb1 {[%clk 0:01:12]}  Qc3 {[%clk 0:00:25]} 15. cxd5 {[%clk 0:01:07]}  exd5 {[%clk 0:00:25]} 16. Qxd4 {[%clk 0:01:02]}  Qc2 {[%clk 0:00:23]} 17. Qxa7 {[%clk 0:00:53]}  Bc5 {[%clk 0:00:23]} 18. Qa5 {[%clk 0:00:50]}  Ne4 {[%clk 0:00:21]} 19. Be3 {[%clk 0:00:42]}  Bxe3 {[%clk 0:00:20]} 20. fxe3 {[%clk 0:00:43]}  Nc3 {[%clk 0:00:17]} 21. Re1 {[%clk 0:00:41]}  Nxa2 {[%clk 0:00:16]} 22. Nd4 {[%clk 0:00:40]}  Qc3 {[%clk 0:00:11]} 23. Qxa2 {[%clk 0:00:40]}  Qxe3+ {[%clk 0:00:11]} 24. Kh1 {[%clk 0:00:40]}  Qxd4 {[%clk 0:00:12]} 25. Qxd5 {[%clk 0:00:38]}  Qxd5 {[%clk 0:00:12]} 26. Bxd5 {[%clk 0:00:39]}  Nf6 {[%clk 0:00:13]} 27. Bf3 {[%clk 0:00:39]}  Re8 {[%clk 0:00:11]} 28. Kg2 {[%clk 0:00:39]}  Be6 {[%clk 0:00:11]} 29. Rc1 {[%clk 0:00:39]}  Bd5 {[%clk 0:00:11]} 30. Kf2 {[%clk 0:00:39]}  Bxf3 {[%clk 0:00:11]} 31. exf3 {[%clk 0:00:40]}  g6 {[%clk 0:00:11]} 32. Rc2 {[%clk 0:00:40]}  Kg7 {[%clk 0:00:12]} 33. h4 {[%clk 0:00:41]}  h5 {[%clk 0:00:12]} 34. Nb3 {[%clk 0:00:40]}  Re7 {[%clk 0:00:12]} 35. Nd4 {[%clk 0:00:40]}  Nd5 {[%clk 0:00:12]} 36. Ne2 {[%clk 0:00:40]}  Nb4 {[%clk 0:00:12]} 37. Rd2 {[%clk 0:00:40]}  Rc7 {[%clk 0:00:13]} 38. Nf4 {[%clk 0:00:40]}  Rc2 {[%clk 0:00:13]} 39. Rxc2 {[%clk 0:00:41]}  Nxc2 {[%clk 0:00:14]} 40. g4 {[%clk 0:00:40]}  hxg4 {[%clk 0:00:13]} 41. fxg4 {[%clk 0:00:41]}  Nd4 {[%clk 0:00:13]} 42. Ke3 {[%clk 0:00:42]}  Nc6 {[%clk 0:00:13]} 43. Ke4 {[%clk 0:00:42]}  Ne7 {[%clk 0:00:14]} 44. Ke5 {[%clk 0:00:40]}  Nc6+ {[%clk 0:00:14]} 45. Kd5 {[%clk 0:00:41]}  Nb4+ {[%clk 0:00:15]} 46. Kc5 {[%clk 0:00:39]}  Nc2 {[%clk 0:00:15]} 47. Ng2 {[%clk 0:00:37]}  f5 {[%clk 0:00:07]} 48. g5 {[%clk 0:00:36]}  f4 {[%clk 0:00:06]} 49. Nxf4 {[%clk 0:00:34]}  Ne3 {[%clk 0:00:04]} 50. Ne6+ {[%clk 0:00:33]}  Kf7 {[%clk 0:00:04]} 51. Nd4 {[%clk 0:00:34]}  Ng2 {[%clk 0:00:03]} 52. Nf3 {[%clk 0:00:34]}  Ke6 {[%clk 0:00:04]} 53. Kd4 {[%clk 0:00:21]}  Kf5 {[%clk 0:00:05]} 54. Kd5 {[%clk 0:00:21]}  Kg4 {[%clk 0:00:05]} 55. Ne5+ {[%clk 0:00:17]}  Kxh4 {[%clk 0:00:05]} 56. Nf7 {[%clk 0:00:16]}  Kh5 {[%clk 0:00:04]} 57. Ke5 {[%clk 0:00:17]}  Nh4 {[%clk 0:00:04]} 58. Kf6 {[%clk 0:00:17]}  Kg4 {[%clk 0:00:04]} 59. Ne5+ {[%clk 0:00:17]}  Kh5 {[%clk 0:00:05]} 60. Nd3 {[%clk 0:00:16]}  Nf3 {[%clk 0:00:04]} 61. Nf4+ {[%clk 0:00:16]}  Kg4 {[%clk 0:00:05]} 62. Nxg6 {[%clk 0:00:13]}  Nxg5 {[%clk 0:00:06]} 1/2-1/2


[Site "https://www.chess.com"]

[Event "Titled Tuesday Blitz April 25 Early 2023"]
[White "Zhigalko, Sergei"]
[Black "Skvortsov, Andrei"]
[WhiteFideId "13502956"]
[BlackFideId "24108600"]
[WhiteElo "2626"]
[BlackElo "2259"]
[Result "1-0"]
[Round "03"]
[TimeControl "180+2"]
[Date "2023.04.25"]
[WhiteClock "0:01:08"]
[BlackClock "0:00:38"]

1. e4 {[%clk 0:03:00]}  d5 {[%clk 0:02:53]} 2. exd5 {[%clk 0:03:00]}  Qxd5 {[%clk 0:02:54]} 3. Nc3 {[%clk 0:03:00]}  Qe5+ {[%clk 0:02:54]} 4. Be2 {[%clk 0:02:53]}  Bg4 {[%clk 0:02:53]} 5. d4 {[%clk 0:02:53]}  Bxe2 {[%clk 0:02:53]} 6. Ngxe2 {[%clk 0:02:52]}  Qa5 {[%clk 0:02:51]} 7. O-O {[%clk 0:02:50]}  Nf6 {[%clk 0:02:46]} 8. b4 {[%clk 0:02:48]}  Qxb4 {[%clk 0:02:45]} 9. Qd3 {[%clk 0:02:28]}  Qd6 {[%clk 0:02:36]} 10. Bf4 {[%clk 0:02:17]}  Qd7 {[%clk 0:02:23]} 11. Rab1 {[%clk 0:02:13]}  c6 {[%clk 0:02:21]} 12. Qg3 {[%clk 0:01:56]}  Nh5 {[%clk 0:02:15]} 13. Qe3 {[%clk 0:01:30]}  Nxf4 {[%clk 0:02:10]} 14. Nxf4 {[%clk 0:01:31]}  e6 {[%clk 0:01:54]} 15. d5 {[%clk 0:01:32]}  cxd5 {[%clk 0:01:52]} 16. Ncxd5 {[%clk 0:01:33]}  Bd6 {[%clk 0:01:44]} 17. Nh5 {[%clk 0:01:32]}  Kf8 {[%clk 0:01:25]} 18. Ndf6 {[%clk 0:01:23]}  gxf6 {[%clk 0:01:22]} 19. Qh6+ {[%clk 0:01:23]}  Ke7 {[%clk 0:00:47]} 20. Qxf6+ {[%clk 0:01:21]}  Kf8 {[%clk 0:00:47]} 21. Qxh8+ {[%clk 0:01:21]}  Ke7 {[%clk 0:00:47]} 22. Rfd1 {[%clk 0:01:14]}  Qc6 {[%clk 0:00:40]} 23. Qf6+ {[%clk 0:01:08]}  Ke8 {[%clk 0:00:38]} 1-0


[Site "https://www.chess.com"]

[Event "Titled Tuesday Blitz April 25 Early 2023"]
[White "Subelj, Jan"]
[Black "Mitrabha, Guha"]
[WhiteFideId "14618583"]
[BlackFideId "5057000"]
[WhiteElo "2474"]
[BlackElo "2507"]
[Result "0-1"]
[Round "03"]
[TimeControl "180+2"]
[Date "2023.04.25"]
[WhiteClock "0:00:11"]
[BlackClock "0:00:52"]

1. e4 {[%clk 0:02:41]}  c6 {[%clk 0:02:45]} 2. Nf3 {[%clk 0:02:39]}  d5 {[%clk 0:02:44]} 3. d3 {[%clk 0:02:39]}  Nd7 {[%clk 0:02:43]} 4. e5 {[%clk 0:02:37]}  e6 {[%clk 0:02:40]} 5. d4 {[%clk 0:02:34]}  Ne7 {[%clk 0:02:41]} 6. c3 {[%clk 0:02:34]}  c5 {[%clk 0:02:42]} 7. Bd3 {[%clk 0:02:34]}  Nc6 {[%clk 0:02:42]} 8. O-O {[%clk 0:02:35]}  Be7 {[%clk 0:02:43]} 9. a3 {[%clk 0:02:32]}  g5 {[%clk 0:02:38]} 10. Be3 {[%clk 0:02:18]}  h5 {[%clk 0:02:34]} 11. b4 {[%clk 0:02:17]}  c4 {[%clk 0:02:33]} 12. Bc2 {[%clk 0:02:15]}  g4 {[%clk 0:02:33]} 13. Nfd2 {[%clk 0:02:14]}  f5 {[%clk 0:02:33]} 14. exf6 {[%clk 0:02:10]}  Nxf6 {[%clk 0:02:33]} 15. f3 {[%clk 0:02:07]}  Qc7 {[%clk 0:02:26]} 16. b5 {[%clk 0:02:03]}  Na5 {[%clk 0:02:25]} 17. fxg4 {[%clk 0:01:53]}  hxg4 {[%clk 0:02:17]} 18. Bg6+ {[%clk 0:01:45]}  Kd8 {[%clk 0:02:14]} 19. Bf4 {[%clk 0:01:46]}  Qb6 {[%clk 0:02:10]} 20. Be5 {[%clk 0:01:36]}  Rf8 {[%clk 0:02:06]} 21. Rf4 {[%clk 0:01:17]}  Qxb5 {[%clk 0:02:04]} 22. Qf1 {[%clk 0:01:13]}  Qb2 {[%clk 0:02:03]} 23. Bxf6 {[%clk 0:01:10]}  Rxf6 {[%clk 0:02:02]} 24. Rxf6 {[%clk 0:01:11]}  Qxa1 {[%clk 0:02:02]} 25. Rf8+ {[%clk 0:01:07]}  Bxf8 {[%clk 0:01:52]} 26. Qxf8+ {[%clk 0:01:08]}  Kc7 {[%clk 0:01:53]} 27. Qf4+ {[%clk 0:01:05]}  Kb6 {[%clk 0:01:52]} 28. Qxg4 {[%clk 0:00:43]}  Qb2 {[%clk 0:01:48]} 29. Qf4 {[%clk 0:00:40]}  Bd7 {[%clk 0:01:46]} 30. h4 {[%clk 0:00:40]}  Qc1+ {[%clk 0:01:43]} 31. Kh2 {[%clk 0:00:40]}  Qe1 {[%clk 0:01:39]} 32. Nf3 {[%clk 0:00:31]}  Qf2 {[%clk 0:01:33]} 33. Qd6+ {[%clk 0:00:23]}  Bc6 {[%clk 0:01:33]} 34. Qc5+ {[%clk 0:00:18]}  Ka6 {[%clk 0:01:33]} 35. h5 {[%clk 0:00:18]}  Qe3 {[%clk 0:01:27]} 36. Qd6 {[%clk 0:00:18]}  Rg8 {[%clk 0:01:18]} 37. Qe5 {[%clk 0:00:17]}  Qh6 {[%clk 0:01:07]} 38. Qg5 {[%clk 0:00:14]}  Qg7 {[%clk 0:01:05]} 39. Ne5 {[%clk 0:00:14]}  Be8 {[%clk 0:01:02]} 40. Nd2 {[%clk 0:00:14]}  Nc6 {[%clk 0:01:01]} 41. Ndf3 {[%clk 0:00:13]}  Bxg6 {[%clk 0:01:01]} 42. Nxg6 {[%clk 0:00:13]}  Qc7+ {[%clk 0:00:58]} 43. Nfe5 {[%clk 0:00:13]}  Rg7 {[%clk 0:00:52]} 44. h6 {[%clk 0:00:13]}  Rh7 {[%clk 0:00:53]} 45. Kg3 {[%clk 0:00:12]}  Qa5 {[%clk 0:00:52]} 46. Kh4 {[%clk 0:00:11]}  Qxc3 {[%clk 0:00:52]} 47. Nxc6 {[%clk 0:00:11]}  bxc6 {[%clk 0:00:52]} 48. Qf6 {[%clk 0:00:11]}  Rxh6+ {[%clk 0:00:52]} 49. Kg5 {[%clk 0:00:11]}  Qe3+ {[%clk 0:00:52]} 50. Nf4 {[%clk 0:00:11]}  Rxf6 {[%clk 0:00:52]} 0-1


[Site "https://www.chess.com"]

[Event "Titled Tuesday Blitz April 25 Early 2023"]
[White "Jaracz, Pawel"]
[Black "Demchenko, Anton"]
[WhiteFideId "1102222"]
[BlackFideId "4160258"]
[WhiteElo "2438"]
[BlackElo "2545"]
[Result "0-1"]
[Round "03"]
[TimeControl "180+2"]
[Date "2023.04.25"]
[WhiteClock "0:00:45"]
[BlackClock "0:00:41"]

1. e4 {[%clk 0:03:00]}  e5 {[%clk 0:02:59]} 2. Nf3 {[%clk 0:03:00]}  Nc6 {[%clk 0:03:00]} 3. Bb5 {[%clk 0:03:00]}  a6 {[%clk 0:03:01]} 4. Ba4 {[%clk 0:03:01]}  Nge7 {[%clk 0:03:02]} 5. Nc3 {[%clk 0:02:56]}  d6 {[%clk 0:03:00]} 6. O-O {[%clk 0:02:43]}  h6 {[%clk 0:03:00]} 7. d4 {[%clk 0:02:40]}  b5 {[%clk 0:02:54]} 8. Bb3 {[%clk 0:02:38]}  Nxd4 {[%clk 0:02:47]} 9. Nxd4 {[%clk 0:02:38]}  exd4 {[%clk 0:02:48]} 10. Qh5 {[%clk 0:02:18]}  g6 {[%clk 0:02:07]} 11. Qf3 {[%clk 0:02:16]}  Be6 {[%clk 0:02:03]} 12. Nd5 {[%clk 0:02:10]}  Bxd5 {[%clk 0:01:55]} 13. exd5 {[%clk 0:02:10]}  Bg7 {[%clk 0:01:54]} 14. Qh3 {[%clk 0:01:45]}  Qd7 {[%clk 0:01:50]} 15. Qh4 {[%clk 0:01:38]}  O-O {[%clk 0:01:44]} 16. g4 {[%clk 0:01:33]}  g5 {[%clk 0:01:38]} 17. Qh3 {[%clk 0:01:31]}  f5 {[%clk 0:01:33]} 18. gxf5 {[%clk 0:01:27]}  Qxf5 {[%clk 0:01:25]} 19. Qg2 {[%clk 0:01:24]}  Ng6 {[%clk 0:01:23]} 20. f4 {[%clk 0:01:16]}  Nh4 {[%clk 0:01:16]} 21. Qg3 {[%clk 0:01:14]}  Rae8 {[%clk 0:00:53]} 22. Bd2 {[%clk 0:01:09]}  Re2 {[%clk 0:00:54]} 23. fxg5 {[%clk 0:00:48]}  Nf3+ {[%clk 0:00:52]} 24. Kh1 {[%clk 0:00:45]}  Be5 {[%clk 0:00:41]} 0-1


[Site "https://www.chess.com"]

[Event "Titled Tuesday Blitz April 25 Early 2023"]
[White "Lewicki, Miroslaw"]
[Black "Kuzubov, Yuriy"]
[WhiteFideId "1113380"]
[BlackFideId "14112906"]
[WhiteElo "2212"]
[BlackElo "2496"]
[Result "0-1"]
[Round "03"]
[TimeControl "180+2"]
[Date "2023.04.25"]
[WhiteClock "0:00:01"]
[BlackClock "0:00:14"]

1. g3 {[%clk 0:03:00]}  d5 {[%clk 0:02:56]} 2. Bg2 {[%clk 0:03:01]}  Nf6 {[%clk 0:02:55]} 3. Nf3 {[%clk 0:03:02]}  c5 {[%clk 0:02:55]} 4. O-O {[%clk 0:03:02]}  e6 {[%clk 0:02:55]} 5. d4 {[%clk 0:03:02]}  cxd4 {[%clk 0:02:55]} 6. Nxd4 {[%clk 0:03:02]}  e5 {[%clk 0:02:55]} 7. Nb3 {[%clk 0:03:02]}  Be6 {[%clk 0:02:53]} 8. Nc3 {[%clk 0:03:01]}  Be7 {[%clk 0:02:50]} 9. Bg5 {[%clk 0:03:00]}  Nbd7 {[%clk 0:02:50]} 10. f4 {[%clk 0:02:14]}  exf4 {[%clk 0:02:49]} 11. Bxf4 {[%clk 0:02:09]}  O-O {[%clk 0:02:43]} 12. e4 {[%clk 0:02:05]}  dxe4 {[%clk 0:02:24]} 13. Nxe4 {[%clk 0:02:05]}  Nxe4 {[%clk 0:02:17]} 14. Bxe4 {[%clk 0:02:06]}  Qb6+ {[%clk 0:02:04]} 15. Kh1 {[%clk 0:02:05]}  Rad8 {[%clk 0:02:00]} 16. Qf3 {[%clk 0:01:51]}  Nf6 {[%clk 0:01:41]} 17. Be3 {[%clk 0:00:53]}  Qc7 {[%clk 0:01:40]} 18. Bf4 {[%clk 0:00:51]}  Qb6 {[%clk 0:01:14]} 19. Be3 {[%clk 0:00:51]}  Qb4 {[%clk 0:01:13]} 20. Bxb7 {[%clk 0:00:42]}  Nd5 {[%clk 0:01:13]} 21. Ba6 {[%clk 0:00:42]}  Nc7 {[%clk 0:01:01]} 22. Bb7 {[%clk 0:00:38]}  Nd5 {[%clk 0:00:58]} 23. Ba6 {[%clk 0:00:38]}  Nxe3 {[%clk 0:00:23]} 24. Qxe3 {[%clk 0:00:38]}  Rfe8 {[%clk 0:00:20]} 25. Rf4 {[%clk 0:00:20]}  Qb8 {[%clk 0:00:19]} 26. Bc4 {[%clk 0:00:12]}  Bg5 {[%clk 0:00:19]} 27. Bxe6 {[%clk 0:00:10]}  Rxe6 {[%clk 0:00:19]} 28. Qf3 {[%clk 0:00:11]}  Bxf4 {[%clk 0:00:19]} 29. gxf4 {[%clk 0:00:12]}  Qb5 {[%clk 0:00:17]} 30. c3 {[%clk 0:00:09]}  Qd3 {[%clk 0:00:16]} 31. Qg2 {[%clk 0:00:06]}  Re2 {[%clk 0:00:15]} 32. Qb7 {[%clk 0:00:06]}  Qc2 {[%clk 0:00:14]} 33. Nd2 {[%clk 0:00:01]}  Rexd2 {[%clk 0:00:14]} 0-1


[Site "https://www.chess.com"]